bitfinex/quotes_ETHUSD_20241018
["timestamp","ask_amount","ask_price","bid_price","bid_amount"]
[1729221908428,3.8158,2620.7,2620.5,0.4004]
[1729221910017,3.0,2620.8,2620.5,0.4004]
[1729221910218,3.8157,2620.8,2620.5,0.4004]
[1729221912191,0.59767444,2620.9,2620.5,0.4004]
[1729221912827,4.41324444,2620.9,2620.5,0.4004]
[1729221913035,4.41324444,2620.9,2620.6,0.4320855]
[1729221913237,0.59767444,2620.9,2620.6,0.4320855]
[1729221913439,4.41317444,2620.9,2620.6,0.4320855]
[1729221913597,0.59767444,2620.9,2620.6,0.4320855]
[1729221913939,3.81492,2621.3,2620.6,0.4320855]
[1729221914236,3.81492,2621.3,2620.8,0.4004]
[1729221914444,3.81512,2621.2,2620.8,0.4004]
[1729221914800,3.41186363,2621.6,2620.8,0.4004]
[1729221914801,7.63047,2621.1,2620.8,0.4004]
[1729221914999,3.8152,2621.1,2620.8,0.4004]
[1729221915229,7.48048,2621.1,2620.8,0.4004]
[1729221915410,3.0,2621.1,2620.8,0.89863019]
[1729221915627,3.81584,2620.7,2620.5,0.4004]
[1729221915839,3.81587,2620.7,2620.5,0.4004]
[1729221916258,3.81557,2620.9,2620.5,0.4004]
[1729221916452,3.81564,2620.8,2620.5,0.4004]
[1729221916761,0.55,2621.0,2620.5,0.4004]
[1729221916762,3.81578,2620.7,2620.5,0.4004]
[1729221917548,7.63169,2620.7,2620.5,0.4004]
[1729221917719,7.63165,2620.7,2620.5,0.4004]
[1729221917920,7.63164,2620.7,2620.5,0.4004]
[1729221918161,3.81578,2620.7,2620.5,0.4004]
[1729221918458,3.81557,2620.9,2620.5,0.4004]
[1729221918660,3.81579,2620.7,2620.5,0.4004]
[1729221919727,3.81556,2620.9,2620.5,0.4004]
[1729221919923,3.81564,2620.8,2620.5,0.4004]
[1729221921155,3.81556,2620.9,2620.5,0.4004]
[1729221921360,7.63117,2620.9,2620.5,0.4004]
[1729221921663,3.81563,2620.8,2620.5,0.83300299]
[1729221922060,3.81556,2620.9,2620.5,0.83300299]
[1729221922265,3.81556,2620.9,2620.5,0.4004]
[1729221922557,7.63112,2620.9,2620.5,0.4004]
[1729221923139,6.81527,2621.1,2620.6,3.81583]
[1729221923339,6.81527,2621.1,2620.7,0.4004]
[1729221923541,3.81535,2621.0,2620.7,0.822023]
[1729221923758,6.81527,2621.1,2620.7,0.822023]
[1729221926423,3.81534,2621.0,2620.7,0.822023]
[1729221926623,6.81515,2621.2,2620.7,0.822023]
[1729221926825,6.81515,2621.2,2620.7,0.4004]
[1729221926826,3.81534,2621.0,2620.7,0.4004]
[1729221927268,3.81527,2621.1,2620.7,0.4004]
[1729221927569,3.81534,2621.0,2620.7,0.4004]
[1729221927872,3.81548,2620.9,2620.5,0.4004]
[1729221928685,7.63109,2620.9,2620.5,0.82535796]
[1729221928960,3.81548,2620.9,2620.5,0.82535796]
[1729221929865,3.81549,2620.9,2620.5,0.82535796]
[1729221930366,3.81549,2620.9,2620.5,4.64140796]
[1729221930569,3.81549,2620.9,2620.5,0.82535796]
[1729221930777,3.81549,2620.9,2620.6,0.46695376]
[1729221932159,7.63106,2620.9,2620.6,0.46695376]
[1729221932361,3.81549,2620.9,2620.6,0.46695376]
[1729221937486,0.19338471,2620.8,2620.6,0.46695376]
[1729221943014,2.1356312,2621.6,2620.6,0.46695376]
[1729221943015,6.815,2621.3,2620.8,3.81562]
[1729221943204,6.815,2621.3,2620.8,4.84107187]
[1729221943710,0.19271322,2621.2,2620.8,4.84107187]
[1729221943911,4.00776322,2621.2,2620.8,4.84107187]
[1729221944077,3.0,2621.1,2620.8,4.84107187]
[1729221944279,3.0,2621.1,2620.9,0.69971068]
[1729221944585,3.81497,2621.3,2620.9,0.69971068]
[1729221944586,7.62996,2621.3,2620.9,0.69971068]
[1729221944823,3.81497,2621.3,2620.9,0.77601385]
[1729221945184,1.67932094,2621.2,2620.9,0.69971068]
[1729221945508,3.81521,2621.1,2620.7,0.4004]
[1729221946004,5.49429094,2621.3,2620.7,4.21608]
[1729221946524,3.81505,2621.2,2620.7,4.21608]
[1729221947295,5.49464094,2621.1,2620.7,0.4004]
[1729221947897,3.81505,2621.2,2620.7,4.21607]
[1729221948099,3.81505,2621.2,2620.8,0.97112109]
[1729221948326,5.49437094,2621.2,2620.8,0.97112109]
[1729221948622,3.0,2621.3,2620.5,1.67932094]
[1729221948623,5.49490094,2620.9,2620.5,0.4004]
[1729221948785,3.81558,2620.9,2620.5,0.4004]
[1729221949419,3.81558,2620.9,2620.5,0.47671367]
[1729221951481,3.81563,2620.8,2620.5,0.4004]
[1729221951681,3.81563,2620.8,2620.5,1.07331156]
[1729221951918,5.49527094,2620.6,2620.4,0.0279996]
[1729221952089,3.81595,2620.6,2620.4,0.0279996]
[1729221953086,3.81583,2620.7,2620.4,0.0279996]
[1729221953426,7.63169,2620.7,2620.4,0.0279996]
[1729221953621,3.81583,2620.7,2620.4,0.0279996]
[1729221954517,7.63169,2620.7,2620.4,0.0279996]
[1729221954908,3.0,2620.8,2620.4,2.3239475]
[1729221955114,3.81555,2620.9,2620.4,4.46079656]
[1729221955986,3.0,2621.0,2620.5,2.07972094]
[1729221956181,9.30933094,2621.3,2620.7,4.21608]
[1729221956393,3.81509,2621.2,2620.8,0.97112209]
[1729221956608,5.49441094,2621.2,2620.8,0.97112209]
[1729221957832,3.81509,2621.2,2620.8,0.97112209]
[1729221960338,3.0,2621.2,2620.8,4.78666209]
[1729221960542,3.0,2621.4,2620.9,0.07630425]
[1729221960693,3.0,2621.4,2621.0,0.4004]
[1729221960907,3.0,2621.4,2621.0,4.21572]
[1729221961111,3.0,2621.4,2621.0,0.4004]
[1729221961633,3.0,2621.4,2621.1,0.42920643]
[1729221962023,6.81484,2621.4,2621.1,0.42920643]
[1729221962222,6.81484,2621.4,2621.0,0.4004]
[1729221962427,3.81492,2621.3,2621.0,0.4004]
[1729221963226,6.81484,2621.4,2621.0,0.4004]
[1729221964028,3.81506,2621.2,2621.0,0.4004]
[1729221964210,4.61474,2621.4,2621.0,0.4004]
[1729221964574,3.8149,2621.3,2621.0,0.4004]
[1729221965834,4.61467,2621.4,2621.0,0.4004]
[1729221966151,3.8149,2621.3,2621.0,0.4004]
[1729221967054,4.61467,2621.4,2621.0,0.4004]
[1729221967222,3.81506,2621.2,2620.8,0.4004]
[1729221967422,3.81506,2621.2,2620.8,1.203588]
[1729221968357,3.81506,2621.2,2620.8,5.019208]
[1729221969257,3.81506,2621.2,2620.8,1.203588]
[1729221971570,3.81506,2621.2,2620.8,1.27989221]
[1729221973464,8.42954,2621.4,2620.9,3.81547]
[1729221973671,4.61467,2621.4,2620.9,4.70658322]
[1729221974528,3.81491,2621.3,2620.9,4.70658322]
[1729221975224,3.81491,2621.3,2620.9,0.89111322]
[1729221975425,3.81491,2621.3,2620.8,0.4004]
[1729221976771,7.62991,2621.3,2620.8,0.4004]
[1729221977854,9.30896498,2621.3,2620.8,0.4004]
[1729221978054,9.30894498,2621.3,2620.8,4.29229419]
[1729221978687,9.30894498,2621.3,2620.8,4.21599]
[1729221979262,5.49396498,2621.3,2620.8,4.21599]
[1729221979686,3.81491,2621.3,2620.8,4.637589]
[1729221980002,1.67905498,2621.5,2620.8,4.71384311]
[1729221980189,9.30874498,2621.4,2620.8,4.71384311]
[1729221980495,5.49388498,2621.4,2620.8,8.453079]
[1729221980673,5.49388498,2621.4,2620.9,0.8453079]
[1729221981497,5.49388498,2621.4,2620.9,0.92160856]
[1729221982120,9.30872498,2621.4,2620.9,0.8453079]
[1729221982276,5.49388498,2621.4,2620.9,0.8453079]
[1729221982801,9.30874498,2621.4,2620.9,0.8453079]
[1729221983001,1.67905498,2621.3,2620.9,0.8453079]
[1729221983200,1.67905498,2621.3,2621.0,0.92983869]
[1729221983410,1.67905498,2621.3,2620.8,4.637529]
[1729221983583,1.67905498,2621.3,2620.8,8.453079]
[1729221984214,1.67905498,2621.3,2620.8,4.637529]
[1729221984708,5.49395498,2621.3,2620.8,8.453069]
[1729221984885,5.49388498,2621.4,2620.8,8.453039]
[1729221985086,9.30875498,2621.4,2620.9,1.0132094]
[1729221985395,1.67905498,2621.3,2620.9,1.0132094]
[1729221985601,1.67905498,2621.3,2620.8,4.637509]
[1729221985977,5.49402498,2621.3,2620.8,4.637509]
[1729221986171,1.67905498,2621.3,2620.8,4.637509]
[1729221987602,5.49403498,2621.3,2620.8,4.637509]
[1729221990886,1.67905498,2621.3,2620.8,4.637509]
[1729221991099,3.81506,2621.2,2620.8,4.637509]
[1729221991284,3.81506,2621.2,2620.9,0.4637509]
[1729221992191,5.49395498,2621.3,2620.9,0.4637509]
[1729221996816,1.67905498,2621.3,2620.9,0.4637509]
[1729221997304,5.49399498,2621.3,2620.9,0.4637509]
[1729221997515,1.67905498,2621.3,2620.9,0.4637509]
[1729221998400,5.49404498,2621.3,2620.9,0.4637509]
[1729221998605,5.49404498,2621.3,2620.8,4.637509]
[1729221999349,3.81504,2621.2,2620.8,4.637509]
[1729221999804,5.49400498,2621.3,2620.8,4.637509]
[1729221999988,1.67905498,2621.3,2620.8,4.637509]
[1729222000196,1.67905498,2621.3,2620.9,3.81537]
[1729222000427,3.81483,2621.4,2620.9,3.81537]
[1729222000628,5.49388498,2621.4,2621.0,0.8452879]
[1729222001038,1.67905498,2621.3,2621.0,0.8452879]
[1729222001205,5.49388498,2621.4,2621.0,0.8452879]
[1729222005328,5.49388498,2621.4,2621.1,0.4004]
[1729222006020,1.67905498,2621.3,2621.1,0.4004]
[1729222006342,9.30875498,2621.4,2621.1,0.4004]
[1729222008001,1.67905498,2621.3,2621.1,0.4004]
[1729222009242,1.67905498,2621.2,2621.1,0.4004]
[1729222011009,1.67905498,2621.2,2620.8,3.81551]
[1729222011211,1.67905498,2621.2,2620.9,0.4004]
[1729222013209,1.67905498,2621.1,2620.9,0.4004]
[1729222013477,1.67905498,2621.2,2620.9,0.4004]
[1729222014482,1.67905498,2621.3,2620.9,4.21587]
[1729222014640,5.49396498,2621.3,2620.9,0.4004]
[1729222014835,1.67905498,2621.2,2620.9,0.4004]
[1729222015078,1.67905498,2621.2,2620.9,1.01157542]
[1729222015269,1.67905498,2621.2,2620.9,1.08787634]
[1729222017257,1.67905498,2621.2,2620.9,1.01157542]
[1729222017769,1.67905498,2621.2,2620.9,1.08787635]
[1729222019249,1.67905498,2621.2,2620.9,1.01157542]
[1729222019589,1.67905498,2621.2,2620.9,1.08787637]
[1729222019989,3.81486,2621.4,2620.9,4.90334637]
[1729222020284,1.67905498,2621.3,2621.0,0.49033464]
[1729222022802,5.49395498,2621.3,2621.0,0.49033464]
[1729222024749,1.67905498,2621.3,2621.0,0.49033464]
[1729222025250,7.57253,2621.6,2621.1,4.29182094]
[1729222025251,6.81457,2621.6,2621.1,4.29182094]
[1729222025447,3.81457,2621.6,2621.2,0.64612106]
[1729222025886,5.49362498,2621.6,2621.2,0.64612106]
[1729222026882,9.30816498,2621.6,2621.2,0.64612106]
[1729222027104,5.49359498,2621.6,2621.2,0.64612106]
[1729222027385,5.49359498,2621.6,2621.3,0.49379239]
[1729222027386,1.67905498,2621.5,2621.3,0.49379239]
[1729222027760,5.49359498,2621.6,2621.3,0.49379239]
[1729222028067,1.67905498,2621.5,2621.1,4.29180281]
[1729222028276,5.49359498,2621.6,2621.1,4.29180281]
[1729222028482,1.67905498,2621.3,2621.1,0.47669281]
[1729222028658,1.67905498,2621.3,2621.1,0.4004]
[1729222029398,1.67905498,2621.4,2621.1,0.4004]
[1729222029608,1.67905498,2621.4,2621.1,1.39366651]
[1729222030191,1.67905498,2621.4,2621.1,1.46996111]
[1729222030404,1.67905498,2621.4,2621.1,1.39366651]
[1729222030558,1.67905498,2621.4,2621.1,1.46996113]
[1729222031363,1.67905498,2621.4,2621.1,5.28513113]
[1729222031564,1.67905498,2621.5,2621.2,0.57754658]
[1729222031780,1.67905498,2621.5,2621.1,5.28513113]
[1729222032168,1.67905498,2621.4,2621.1,5.28513113]
[1729222032373,1.67905498,2621.4,2621.1,1.46996113]
[1729222032562,1.67905498,2621.4,2621.1,1.39366651]
[1729222032883,1.67905498,2621.3,2621.1,1.39366651]
[1729222033094,1.67905498,2621.4,2621.1,1.39366651]
[1729222033401,1.67905498,2621.2,2620.9,5.01589501]
[1729222033697,1.67905498,2621.3,2620.9,4.21584]
[1729222033869,4.61505,2621.4,2620.9,0.4004]
[1729222033870,1.67905498,2621.2,2620.9,0.4004]
[1729222034492,1.67905498,2621.3,2620.9,0.4004]
[1729222035371,1.67905498,2621.3,2620.9,0.47670103]
[1729222035960,1.67905498,2621.3,2620.9,4.29216103]
[1729222036162,1.67905498,2621.3,2620.9,5.18294163]
[1729222038160,6.29410498,2621.4,2620.9,5.18294163]
[1729222042497,1.67905498,2621.5,2621.0,4.21573]
[1729222042807,8.49367498,2621.5,2621.0,0.4004]
[1729222043306,1.67905498,2621.4,2621.0,0.4004]
[1729222043511,1.67905498,2621.4,2621.1,0.51066506]
[1729222043926,1.67905498,2621.4,2621.0,0.4004]
[1729222044874,5.49381498,2621.4,2621.0,0.4004]
[1729222045878,3.81492,2621.3,2621.0,0.4004]
[1729222047600,7.62992,2621.3,2621.0,0.4004]
[1729222048216,7.62991,2621.3,2621.0,0.4004]
[1729222049206,3.81492,2621.3,2621.0,0.4004]
[1729222049722,3.81506,2621.2,2621.0,0.4004]
[1729222051045,3.81492,2621.3,2621.0,0.4004]
[1729222051248,3.81506,2621.2,2621.0,0.4004]
[1729222051812,3.81492,2621.3,2621.0,0.4004]
[1729222052016,7.62993,2621.3,2621.0,0.4004]
[1729222052324,7.62994,2621.3,2621.0,0.4004]
[1729222052517,3.81492,2621.3,2621.0,0.4004]
[1729222052720,7.62994,2621.3,2621.0,0.4004]
[1729222055854,3.81492,2621.3,2621.0,0.4004]
[1729222056154,3.81505,2621.2,2621.0,0.4004]
[1729222057061,3.81492,2621.3,2621.0,0.4004]
[1729222057355,6.81453,2621.6,2621.1,0.4004]
[1729222057662,8.49358498,2621.6,2621.1,0.4004]
[1729222058723,3.8147,2621.5,2621.1,0.4004]
[1729222058954,5.49403498,2621.3,2621.1,0.4004]
[1729222059115,5.49387498,2621.4,2621.1,0.4004]
[1729222059460,3.81482,2621.4,2621.1,0.4004]
[1729222060466,7.62966,2621.4,2621.1,0.4004]
[1729222061248,3.81482,2621.4,2621.1,0.4004]
[1729222061641,7.62967,2621.4,2621.1,0.4004]
[1729222061956,3.81491,2621.3,2621.1,0.4004]
[1729222063931,3.81536,2621.0,2620.8,0.4004]
[1729222064137,1.67905498,2620.9,2620.6,1.20050501]
[1729222064451,3.81548,2620.9,2620.6,0.4004]
[1729222064625,3.81548,2620.9,2620.6,1.1584129]
[1729222064967,5.49453498,2620.9,2620.6,1.1584129]
[1729222065627,3.81548,2620.9,2620.6,1.1584129]
[1729222066090,5.49439498,2621.0,2620.6,1.1584129]
[1729222066288,3.81534,2621.0,2620.6,1.1584129]
[1729222066457,3.81526,2621.1,2620.7,2.25651177]
[1729222066658,3.81498,2621.3,2620.8,5.89496498]
[1729222066990,3.81498,2621.3,2620.9,0.4004]
[1729222067194,6.81471,2621.5,2621.0,0.07629802]
[1729222067478,6.81471,2621.5,2620.9,4.21588]
[1729222067479,0.8004,2621.6,2620.9,4.21588]
[1729222067685,3.0,2621.4,2621.0,0.5015985]
[1729222067992,4.67905498,2621.4,2621.0,0.5015985]
[1729222068171,8.49383498,2621.4,2621.0,0.5015985]
[1729222068479,4.67905498,2621.4,2621.0,0.5015985]
[1729222068689,8.49383498,2621.4,2621.0,0.5015985]
[1729222068982,5.49383498,2621.4,2621.1,0.47173685]
[1729222069348,5.49383498,2621.4,2621.2,0.4004]
[1729222071587,1.67905498,2621.3,2621.2,0.4004]
[1729222071882,5.49383498,2621.4,2621.2,0.4004]
[1729222074179,5.49365498,2621.5,2621.2,0.4004]
[1729222074345,9.30835498,2621.5,2621.2,0.4004]
[1729222074545,5.49365498,2621.5,2621.2,0.4004]
[1729222074747,1.67905498,2621.4,2621.2,0.4004]
[1729222080590,5.49365498,2621.5,2621.2,0.4004]
[1729222083669,3.8146,2621.5,2621.2,0.4004]
[1729222083910,5.49365498,2621.5,2621.2,0.4004]
[1729222084200,3.8144,2621.7,2621.2,4.636984]
[1729222084404,3.8144,2621.7,2621.3,0.0762893]
[1729222084562,3.8144,2621.7,2621.3,3.8911693]
[1729222084767,3.81412,2621.9,2621.4,4.68639333]
[1729222084768,3.0,2621.9,2621.4,4.68639333]
[1729222085071,3.81406,2621.9,2621.5,0.07628313]
[1729222085274,5.49311498,2621.9,2621.5,0.07628313]
[1729222086299,9.30724498,2621.9,2621.4,0.87171333]
[1729222086503,5.49311498,2621.9,2621.4,0.87171333]
[1729222086713,3.81406,2621.9,2621.5,0.92642455]
[1729222086860,5.49311498,2621.9,2621.5,0.92642455]
[1729222087878,9.30724498,2621.9,2621.5,0.92642455]
[1729222089015,5.49311498,2621.9,2621.5,0.92642455]
[1729222090091,4.67905498,2622.0,2621.5,4.74095455]
[1729222090413,5.49300498,2622.0,2621.6,1.46391395]
[1729222091918,3.81404,2621.9,2621.6,1.46391395]
[1729222092211,5.49309498,2621.9,2621.6,1.46391395]
[1729222092413,1.67905498,2622.0,2621.6,0.4004]
[1729222092588,5.49301498,2622.0,2621.6,0.4004]
[1729222092774,5.49308498,2621.9,2621.6,0.4004]
[1729222092971,4.00305087,2622.1,2621.8,1.67905498]
[1729222092972,0.18922087,2622.1,2621.8,1.67905498]
[1729222093175,0.18922087,2622.1,2621.2,1.23166901]
[1729222093176,8.22389428,2622.5,2622.0,5.49289498]
[1729222093520,3.8131,2622.6,2622.2,0.4004]
[1729222094113,1.67905498,2622.5,2622.2,0.4004]
[1729222094679,0.18898984,2622.7,2622.3,0.07626153]
[1729222094875,3.81252,2623.0,2622.3,0.07626153]
[1729222094876,3.81252,2623.0,2622.5,3.81314]
[1729222095226,3.81252,2623.0,2622.4,2.07945498]
[1729222095227,5.49149498,2623.0,2622.7,0.4004]
[1729222095421,1.67905498,2622.9,2622.7,0.4004]
[1729222096096,1.67905498,2622.8,2622.7,0.4004]
[1729222096440,1.67905498,2622.8,2622.3,0.4004]
[1729222096441,5.49176498,2622.8,2622.3,0.4004]
[1729222096619,1.67905498,2622.4,2622.3,0.4004]
[1729222096930,1.67905498,2622.5,2622.1,0.4004]
[1729222097115,7.62615,2622.6,2622.1,0.4004]
[1729222097116,5.49240498,2622.4,2622.1,0.4004]
[1729222097329,5.49264498,2622.2,2621.7,0.4004]
[1729222097642,3.81388,2622.0,2621.7,0.4004]
[1729222097793,3.81359,2622.2,2621.7,0.8219]
[1729222097794,1.67905498,2622.1,2621.7,0.8219]
[1729222097993,1.67905498,2622.1,2621.8,0.07627349]
[1729222098225,1.67905498,2622.1,2621.8,0.07627351]
[1729222098423,1.67905498,2622.1,2621.7,0.8219]
[1729222098796,5.49264498,2622.2,2621.8,0.07627359]
[1729222099051,4.58767,2622.3,2621.8,3.89043359]
[1729222099200,5.49239498,2622.4,2621.9,4.21436]
[1729222099537,5.49239498,2622.4,2621.9,4.21439]
[1729222099718,1.67905498,2622.3,2621.9,0.4004]
[1729222100231,5.49250498,2622.3,2621.9,0.4004]
[1729222100398,5.49250498,2622.3,2621.9,1.13396228]
[1729222100835,1.67905498,2622.3,2621.9,1.13396228]
[1729222101129,7.62673,2622.4,2621.9,1.13396228]
[1729222101130,3.0,2622.4,2622.0,0.07626737]
[1729222101335,4.67905498,2622.4,2621.9,1.13396228]
[1729222101536,4.67905498,2622.4,2621.9,4.94794228]
[1729222101537,8.49235498,2622.4,2621.9,4.94794228]
[1729222101710,8.49235498,2622.4,2622.0,1.04410773]
[1729222106605,1.66832326,2622.5,2622.1,0.07626602]
[1729222106801,1.67905498,2622.5,2622.1,0.07626602]
[1729222107001,5.49228498,2622.5,2622.1,0.07626602]
[1729222107903,3.8131,2622.6,2622.2,0.4004]
[1729222108104,5.49215498,2622.6,2622.2,0.4004]
[1729222108410,1.67905498,2622.5,2622.3,0.421406]
[1729222109123,3.8131,2622.6,2622.3,0.421406]
[1729222109124,1.67905498,2622.4,2622.3,0.421406]
[1729222109322,1.67905498,2622.4,2622.2,0.4004]
[1729222109835,1.67905498,2622.3,2622.2,0.4004]
[1729222110215,5.49249498,2622.3,2622.2,0.4004]
[1729222110416,1.67905498,2622.3,2622.0,0.4004]
[1729222111006,5.49237498,2622.4,2622.0,0.4004]
[1729222112650,5.49237498,2622.4,2622.0,0.821832]
[1729222115865,5.49237498,2622.4,2622.1,0.07626607]
[1729222116032,1.67905498,2622.3,2621.7,3.81424]
[1729222116207,5.49265498,2622.2,2621.8,0.4004]
[1729222116411,1.67905498,2622.0,2621.8,0.821864]
[1729222116610,1.67905498,2622.0,2621.6,0.4004]
[1729222116842,5.49278498,2622.1,2621.6,0.4004]
[1729222117053,3.81391,2622.0,2621.6,0.4004]
[1729222117406,1.67905498,2622.1,2621.6,0.4004]
[1729222117611,5.49281498,2622.1,2621.7,0.4977681]
[1729222118030,4.63983,2622.3,2621.7,0.4977681]
[1729222118234,6.31888498,2622.3,2621.9,0.4004]
[1729222118411,6.31888498,2622.3,2621.9,0.47667159]
[1729222119157,6.31888498,2622.3,2621.9,0.4004]
[1729222119515,1.67905498,2622.2,2621.9,0.4004]
[1729222122239,4.63983,2622.3,2621.9,0.47667173]
[1729222122240,2.50535498,2622.3,2621.9,0.47667173]
[1729222122439,8.49238498,2622.4,2621.9,0.947896]
[1729222122639,8.49238498,2622.4,2621.9,0.87162427]
[1729222122640,1.67905498,2622.2,2621.9,0.87162427]
[1729222122961,5.49257498,2622.3,2621.9,0.87162427]
[1729222123962,1.67905498,2622.2,2621.9,0.87162427]
[1729222124553,5.49257498,2622.3,2621.9,0.94789607]
[1729222124861,1.67905498,2622.2,2621.9,0.87162427]
[1729222125214,1.67905498,2622.2,2621.9,0.94789605]
[1729222125452,5.49257498,2622.3,2621.9,0.94789605]
[1729222125755,5.49257498,2622.3,2621.9,0.87162427]
[1729222125956,1.67905498,2622.2,2621.9,0.94789593]
[1729222126452,5.49257498,2622.3,2621.9,0.87162427]
[1729222126763,5.49257498,2622.3,2621.9,0.947896]
[1729222126918,5.49257498,2622.3,2621.9,0.87162427]
[1729222127428,5.49257498,2622.3,2621.9,0.94789595]
[1729222128375,5.49257498,2622.3,2621.9,0.87162427]
[1729222128524,1.67905498,2622.2,2621.9,0.4004]
[1729222128727,1.67905498,2622.0,2621.7,0.421491]
[1729222129076,3.81381,2622.1,2621.6,4.21476]
[1729222129276,6.32005498,2622.2,2621.8,0.07627635]
[1729222129442,6.32005498,2622.2,2621.7,3.81422]
[1729222129831,1.67905498,2622.0,2621.6,0.4004]
[1729222130059,1.67905498,2622.0,2621.6,4.7163645]
[1729222130394,5.49279498,2622.1,2621.6,4.7163645]
[1729222130693,1.67905498,2622.0,2621.6,4.7163645]
[1729222130892,5.49279498,2622.1,2621.6,4.7163645]
[1729222131188,5.49279498,2622.1,2621.7,0.07627606]
[1729222131388,6.32014498,2622.2,2621.7,4.36985012]
[1729222131806,2.50645498,2622.2,2621.7,0.55554012]
[1729222132288,6.32016498,2622.2,2621.7,0.55554012]
[1729222134208,3.81374,2622.1,2621.7,0.55554012]
[1729222134510,2.50645498,2622.2,2621.8,0.52718146]
[1729222134511,4.641,2622.2,2621.8,0.52718146]
[1729222134809,3.81375,2622.1,2621.8,0.52718146]
[1729222135375,6.32005498,2622.2,2621.8,0.52718146]
[1729222136012,5.49265498,2622.2,2621.8,0.52718146]
[1729222136311,3.81354,2622.3,2621.9,0.4004]
[1729222136496,5.49229498,2622.5,2622.0,4.28796515]
[1729222138402,1.67905498,2622.4,2622.0,4.28796515]
[1729222138632,1.67905498,2622.4,2622.1,0.07626658]
[1729222139464,1.67905498,2622.4,2622.0,4.28796515]
[1729222139613,1.67905498,2622.4,2622.1,0.54884702]
[1729222140251,1.67905498,2622.5,2622.1,0.62511362]
[1729222140451,1.67905498,2622.5,2622.2,0.4004]
[1729222141434,5.49219498,2622.6,2622.2,4.21398]
[1729222141942,3.81314,2622.6,2622.2,4.21398]
[1729222142125,4.67905498,2622.7,2622.3,4.2896527]
[1729222142329,1.67905498,2622.6,2622.3,0.4762827]
[1729222142629,1.67905498,2622.7,2622.3,4.2897027]
[1729222142837,1.67905498,2622.7,2622.4,0.07625944]
[1729222143043,3.81278,2622.8,2622.5,0.4004]
[1729222143267,4.67905498,2622.9,2622.5,0.4004]
[1729222143467,0.8236,2623.1,2622.6,3.81293]
[1729222143766,0.8236,2623.1,2622.8,0.4004]
[1729222143767,1.67905498,2623.1,2622.8,0.4004]
[1729222144063,1.67905498,2623.0,2622.8,0.4004]
[1729222144240,1.67905498,2623.1,2622.8,0.4004]
[1729222144563,1.67905498,2623.0,2622.8,0.4004]
[1729222145570,1.67905498,2622.9,2622.8,0.4004]
[1729222145732,1.67905498,2623.0,2622.8,0.4004]
[1729222147523,1.67905498,2622.9,2622.4,8.48443221]
[1729222147727,1.67905498,2622.9,2622.5,1.29647149]
[1729222147961,1.67905498,2622.9,2622.5,5.10956149]
[1729222148163,1.67905498,2622.9,2622.6,3.813]
[1729222148549,3.0,2623.1,2622.6,0.4004]
[1729222148750,1.67905498,2623.1,2622.8,3.81271]
[1729222148961,1.67905498,2623.0,2622.8,0.421311]
[1729222149361,1.67905498,2623.1,2622.8,0.421311]
[1729222149527,1.67905498,2623.0,2622.8,0.421311]
[1729222153639,1.67905498,2622.9,2622.6,0.4004]
[1729222154847,1.67905498,2623.0,2622.7,0.07624962]
[1729222155046,7.62445,2623.2,2622.7,0.07624962]
[1729222155273,1.67905498,2623.0,2622.7,0.07624962]
[1729222155471,1.67905498,2623.0,2622.7,0.88651358]
[1729222155776,1.67905498,2622.9,2622.7,0.81026396]
[1729222158452,1.67905498,2623.0,2622.7,0.81026396]
[1729222159483,1.67905498,2622.9,2622.7,0.81026396]
[1729222159640,3.81228,2623.1,2622.7,0.81026396]
[1729222159834,3.81219,2623.2,2622.7,0.81026396]
[1729222159835,1.67905498,2623.0,2622.7,0.81026396]
[1729222160082,1.67905498,2623.0,2622.8,0.5023634]
[1729222160780,3.81192,2623.4,2622.9,4.21296]
[1729222160934,1.67905498,2623.3,2622.9,4.2892017]
[1729222161577,1.67905498,2623.3,2622.9,0.4766417]
[1729222161788,1.67905498,2623.2,2622.9,4.2891917]
[1729222162082,1.67905498,2623.2,2623.0,0.86041451]
[1729222162248,1.67905498,2623.3,2623.0,0.86041451]
[1729222162573,1.67905498,2623.2,2623.0,0.86041451]
[1729222162777,3.81192,2623.4,2623.0,0.86041451]
[1729222162778,1.67905498,2623.3,2623.0,0.86041451]
[1729222163566,1.67905498,2623.2,2623.0,0.86041451]
[1729222163776,1.67905498,2623.2,2623.1,0.51496062]
[1729222163984,1.67905498,2623.3,2623.1,0.51496062]
[1729222165478,3.0,2623.5,2623.2,0.4004]
[1729222165686,3.81155,2623.6,2623.2,4.28875331]
[1729222165687,1.67905498,2623.6,2623.2,4.28875331]
[1729222165837,1.67905498,2623.5,2623.3,0.86158839]
[1729222166044,3.81146,2623.7,2623.3,0.86158839]
[1729222166242,1.67905498,2623.6,2623.3,0.86158839]
[1729222166478,1.67905498,2623.5,2623.3,0.86158839]
[1729222166647,1.67905498,2623.6,2623.3,0.86158839]
[1729222166845,1.67905498,2623.7,2623.3,0.86158839]
[1729222167073,3.81136,2623.8,2623.4,0.4004]
[1729222167257,1.67905498,2623.7,2623.4,0.4004]
[1729222167507,1.67905498,2623.6,2623.5,0.421229]
[1729222167697,1.67905498,2623.7,2623.5,0.421229]
[1729222167987,1.67905498,2623.6,2623.2,0.4004]
[1729222168469,1.67905498,2623.5,2623.2,0.4004]
[1729222168650,1.67905498,2623.6,2623.2,0.4004]
[1729222168846,1.67905498,2623.6,2623.3,0.421258]
[1729222169167,1.67905498,2623.6,2623.3,0.49748893]
[1729222169687,1.67905498,2623.6,2623.3,0.421258]
[1729222171389,1.67905498,2623.5,2623.3,0.421258]
[1729222172044,5.49063498,2623.6,2623.3,0.421258]
[1729222173083,1.67905498,2623.5,2623.3,0.421258]
[1729222173380,5.49076498,2623.5,2623.3,0.421258]
[1729222176363,5.49076498,2623.5,2623.2,0.4004]
[1729222176982,3.81171,2623.5,2623.2,0.4004]
[1729222177188,2.50405498,2623.6,2623.2,0.4004]
[1729222177189,4.63658,2623.6,2623.2,0.4004]
[1729222177363,6.31563498,2623.6,2623.2,0.4004]
[1729222177952,3.8117,2623.5,2623.2,0.4004]
[1729222178897,3.8117,2623.5,2623.2,0.821668]
[1729222179197,9.30201498,2623.7,2623.2,4.71003303]
[1729222179367,9.30201498,2623.7,2623.2,0.89790303]
[1729222180189,9.30201498,2623.7,2623.2,0.821668]
[1729222180383,1.67905498,2623.6,2623.2,0.821668]
[1729222180589,5.49061498,2623.6,2623.2,0.4004]